lending/lending_fUSD_20260306
["ID","MTS","AMOUNT","RATE_DAILY","PERIOD"]
[407861216,1772837452447,-693.3919763,0.00051499,120]
[407861217,1772837452458,-151.0,0.00051499,120]
[407861218,1772837452468,-719.04747942,0.00051499,120]
[407861219,1772837452478,-150.0,0.00051499,120]
[407861220,1772837452488,-150.0,0.00051499,120]
[407861221,1772837452498,-151.0,0.00051499,120]
[407861222,1772837452507,-745.65223616,0.00051499,120]
[407861223,1772837452517,-773.2413689,0.00051499,120]
[407861224,1772837452526,-151.0,0.00051499,120]
[407861225,1772837452538,-150.0,0.00051499,120]
[407861226,1772837452548,-801.85129955,0.00051499,120]
[407861227,1772837452557,-151.0,0.00051499,120]
[407861228,1772837452567,-150.0,0.00051499,120]
[407861229,1772837452576,-831.51979763,0.00051499,120]
[407861230,1772837452585,-151.0,0.00051499,120]
[407861231,1772837452595,-862.28603014,0.00051499,120]
[407861232,1772837452604,-151.0,0.00051499,120]
[407861233,1772837452613,-894.19061326,0.00051499,120]
[407861234,1772837452623,-151.0,0.00051499,120]
[407861235,1772837452632,-927.27566595,0.00051499,120]
[407861236,1772837452641,-961.58486559,0.00051499,120]
[407861237,1772837452654,-151.0,0.00051499,120]
[407861238,1772837452663,-997.16350561,0.00051499,120]
[407861239,1772837452673,-151.0,0.00051499,120]
[407861240,1772837452683,-30000.0,0.000515,2]
[407861241,1772837452693,-5512.48933057,0.000515,3]
[407861242,1772837452704,-48871.2602152,0.000515,5]
[407861243,1772837452715,-134062.89723498,0.000515,120]
[407861244,1772837452724,-939606.30892735,0.000515,120]
[407861245,1772837452835,-21.04642163,0.000515,120]
[407861246,1772837452946,-150.0,0.00042173,120]
[407861247,1772837452957,-350.0,0.0004221,10]
[407861248,1772837462108,600.0,0.00014064,120]
[407861249,1772837463225,300.0,0.00014064,120]
[407861250,1772837519533,297.02,0.00010331,2]
[407861252,1772837724398,-1189.02,0.0002,30]
[407861253,1772837724452,-600.0,0.0002237,120]
[407861254,1772837724510,-300.0,0.0002237,120]
[407861255,1772837724565,-1184.61,0.00022471,30]
[407861256,1772837724616,-200.0,0.00024606,120]
[407861257,1772837724665,-5000.0,0.00024606,120]
[407861258,1772837724715,-2500.0,0.00024606,120]
[407861259,1772837724765,-577.87,0.00024942,60]
[407861260,1772837724814,-200.0,0.00027162,120]
[407861261,1772837724861,-2500.0,0.00027162,120]
[407861262,1772837724909,-572.25,0.00027413,60]
[407861263,1772837724956,-195.0,0.00027543,120]
[407861264,1772837725003,-195.0,0.00027543,120]
[407861265,1772837725050,-195.0,0.00027543,120]
[407861266,1772837725100,-195.0,0.00027543,120]
[407861267,1772837725147,-195.0,0.00027543,120]
[407861268,1772837725198,-248.373816,0.00029396,30]
[407861269,1772837725247,-570.05,0.00029884,60]
[407861270,1772837725295,-249.91361105,0.00031621,120]
[407861271,1772837725343,-2500.0,0.00031621,120]
[407861272,1772837725393,-2500.0,0.00031621,120]
[407861273,1772837725442,-2500.0,0.00031621,120]
[407861274,1772837725495,-870.59837121,0.00032012,36]
[407861275,1772837725545,-554.79,0.00032355,60]
[407861276,1772837725595,-600.0,0.00033369,120]
[407861277,1772837725645,-600.0,0.00033369,120]
[407861278,1772837725696,-600.0,0.00033369,120]
[407861279,1772837725748,-300.0,0.00033369,120]
[407861280,1772837725801,-300.0,0.00033369,120]
[407861281,1772837725853,-448.2908813,0.00033369,120]
[407861282,1772837725903,-192.09,0.000345,30]
[407861283,1772837725952,-542.55,0.00034825,90]
[407861284,1772837726006,-533.79,0.00037296,90]
[407861285,1772837726059,-180.8,0.00038034,30]
[407861286,1772837726110,-2966.977,0.00038677,52]
[407861287,1772837726161,-168.733,0.00038677,52]
[407861288,1772837726212,-277.596,0.00039347,30]
[407861289,1772837726264,-526.09,0.00039767,90]
[407861290,1772837726315,-500.0,0.00041095,120]
[407861291,1772837726367,-500.0,0.00041095,120]
[407861292,1772837726416,-500.9565902,0.00041095,120]
[407861293,1772837726463,-500.0,0.00041095,120]
[407861294,1772837726511,-500.0,0.00041095,120]
[407861295,1772837726562,-500.0,0.00041095,120]
[407861296,1772837726611,-500.0,0.00041095,120]
[407861297,1772837726662,-500.0,0.00041095,120]
[407861298,1772837726710,-500.0,0.00041095,120]
[407861299,1772837726758,-500.0,0.00041095,120]
[407861300,1772837726808,-1087.88383618,0.00041669,93]
[407861301,1772837726857,-150.0,0.00042173,120]
[407861302,1772837726907,-229.09,0.00042238,90]
[407861303,1772837726957,-150.0,0.00042546,120]
[407861304,1772837727007,-200.0,0.00043068,120]
[407861305,1772837727056,-50000.0,0.000438,60]
[407861306,1772837727108,-20000.0,0.00043836,120]
[407861307,1772837727160,-50000.0,0.000441,60]
[407861308,1772837727210,-150.0,0.00044281,120]
[407861309,1772837727260,-50000.0,0.000443,60]
[407861310,1772837727313,-50000.0,0.000446,60]
[407861311,1772837727604,-150.0,0.00046495,120]
[407861312,1772837727658,-278.3076083,0.0004669,120]
[407861313,1772837727711,-200.0,0.000472,31]
[407861314,1772837727762,-737.0,0.000479,30]
[407861315,1772837727817,-150.0,0.00048348,120]
[407861316,1772837727871,-150.0,0.0004882,120]
[407861317,1772837727926,-20000.0,0.00049315,120]
[407861318,1772837727981,-1300.0,0.00049856,60]
[407861319,1772837728036,-900.0,0.00049856,60]
[407861320,1772837728096,-500.0,0.00049856,60]
[407861321,1772837728151,-1300.0,0.00050404,60]
[407861322,1772837728208,-900.0,0.00050404,60]
[407861323,1772837728261,-500.0,0.00050404,60]
[407861324,1772837728316,-1000.0,0.00050436,30]
[407861325,1772837728370,-1000.0,0.00050492,30]
[407861326,1772837728426,-532.86,0.000505,120]
[407861327,1772837728481,-1000.0,0.00050566,30]
[407861328,1772837728536,-1000.0,0.00050611,30]
[407861329,1772837728592,-1212.0,0.00050619,120]
[407861330,1772837728648,-1000.0,0.0005069,30]
[407861331,1772837728705,-1000.0,0.00050699,30]
[407861332,1772837728759,-150.0,0.0005088,30]
[407861333,1772837728812,-171.0,0.0005088,30]
[407861334,1772837728862,-155.9,0.000509,40]
[407861335,1772837728910,-1300.0,0.00050952,60]
[407861336,1772837728960,-900.0,0.00050952,60]
[407861337,1772837729010,-500.0,0.00050952,60]
[407861338,1772837729062,-158.0,0.00051,120]
[407861339,1772837729117,-2500.0,0.00051,30]
[407861340,1772837729171,-22000.0,0.000511,120]
[407861341,1772837729224,-1126.52691253,0.00051325,120]
[407861342,1772837729278,-151.0,0.00051497,120]
[407861343,1772837729337,-151.0,0.00051499,120]
[407861344,1772837729401,-500.0,0.00051499,120]
[407861345,1772837729457,-500.0,0.00051499,120]
[407861346,1772837729514,-500.0,0.00051499,120]
[407861347,1772837729570,-500.0,0.00051499,120]
[407861348,1772837729625,-500.0,0.00051499,120]
[407861349,1772837729683,-500.0,0.00051499,120]
[407861350,1772837729742,-500.0,0.00051499,120]
[407861351,1772837729799,-500.0,0.00051499,120]
[407861352,1772837729855,-151.0,0.00051499,120]
[407861353,1772837729911,-500.0,0.00051499,120]
[407861354,1772837729968,-151.0,0.00051499,120]
[407861355,1772837730024,-500.0,0.00051499,120]
[407861356,1772837730080,-500.0,0.00051499,120]
[407861357,1772837730140,-151.0,0.00051499,120]
[407861358,1772837730196,-500.0,0.00051499,120]
[407861359,1772837730254,-500.0,0.00051499,120]
[407861360,1772837730311,-151.0,0.00051499,120]
[407861361,1772837730367,-500.0,0.00051499,120]
[407861362,1772837730425,-500.0,0.00051499,120]
[407861363,1772837730481,-151.0,0.00051499,120]
[407861364,1772837730537,-151.0,0.00051499,120]
[407861365,1772837730593,-500.0,0.00051499,120]
[407861366,1772837730647,-500.0,0.00051499,120]
[407861367,1772837730698,-151.0,0.00051499,120]
[407861368,1772837730754,-151.0,0.00051499,120]
[407861369,1772837730810,-500.0,0.00051499,120]
[407861370,1772837730861,-500.0,0.00051499,120]
[407861371,1772837730916,-209.26521639,0.00051499,120]
[407861372,1772837730974,-151.0,0.00051499,120]
[407861373,1772837731032,-500.0,0.00051499,120]
[407861374,1772837731092,-500.0,0.00051499,120]
[407861375,1772837731151,-151.0,0.00051499,120]
[407861376,1772837731212,-500.0,0.00051499,120]
[407861377,1772837731273,-500.0,0.00051499,120]
[407861378,1772837731330,-500.0,0.00051499,120]
[407861379,1772837731403,-151.0,0.00051499,120]
[407861380,1772837731469,-500.0,0.00051499,120]
[407861381,1772837731524,-518.5,0.00051499,120]
[407861382,1772837731612,-151.0,0.00051499,120]
[407861383,1772837731666,-500.0,0.00051499,120]
[407861384,1772837731719,-500.0,0.00051499,120]
[407861385,1772837731773,-537.6845,0.00051499,120]
[407861386,1772837731826,-151.0,0.00051499,120]
[407861387,1772837731879,-500.0,0.00051499,120]
[407861388,1772837731932,-500.0,0.00051499,120]
[407861389,1772837731990,-151.0,0.00051499,120]
[407861390,1772837732043,-557.5788265,0.00051499,120]
[407861391,1772837732095,-500.0,0.00051499,120]
[407861392,1772837732147,-500.0,0.00051499,120]
[407861393,1772837732201,-151.0,0.00051499,120]
[407861394,1772837732256,-578.20924308,0.00051499,120]
[407861395,1772837732311,-500.0,0.00051499,120]
[407861396,1772837732365,-500.0,0.00051499,120]
[407861397,1772837732419,-151.0,0.00051499,120]
[407861398,1772837732476,-599.60298507,0.00051499,120]
[407861399,1772837732531,-500.0,0.00051499,120]
[407861400,1772837732588,-151.0,0.00051499,120]
[407861401,1772837732645,-621.78829552,0.00051499,120]
[407861402,1772837732698,-500.0,0.00051499,120]
[407861403,1772837732747,-500.0,0.00051499,120]
[407861404,1772837732794,-151.0,0.00051499,120]
[407861405,1772837732845,-644.79446246,0.00051499,120]
[407861406,1772837732896,-500.0,0.00051499,120]
[407861407,1772837732965,-500.0,0.00051499,120]
[407861408,1772837733023,-151.0,0.00051499,120]
[407861409,1772837733079,-668.65185757,0.00051499,120]
[407861410,1772837733141,-4060372.64465102,0.000515,120]
[407861411,1772837733203,-1000000.0,0.000515,120]
[407861412,1772837733258,-5554.52620904,0.000515,120]
[407861413,1772837733323,-1000000.0,0.000515,67]
[407861414,1772837733387,-1000000.0,0.000515,95]
[407861415,1772837733448,-1000000.0,0.000515,95]
[407861416,1772837733506,-582196.83612658,0.000515,99]
[407861417,1772837751553,-500.8,0.000347,30]
[407861418,1772837751605,-515.82300736,0.00041095,120]
[407861419,1772837751657,-1553.14359526,0.00041544,92]
[407861420,1772837751708,-800.0,0.00044872,32]
[407861421,1772837751756,-260.8,0.00045,30]
[407861422,1772837751808,-260.8,0.0004725,30]
[407861423,1772837751860,-260.8,0.00049613,30]
[407861424,1772837751907,-800.0,0.00050351,34]
[407861425,1772837751959,-1616.45931541,0.00051159,120]
[407861426,1772837752008,-500.0,0.00051499,120]
[407861427,1772837752056,-151.0,0.00051499,120]
[407861428,1772837752105,-693.3919763,0.00051499,120]
[407861429,1772837752154,-500.0,0.00051499,120]
[407861430,1772837752208,-151.0,0.00051499,120]
[407861431,1772837752262,-719.04747942,0.00051499,120]
[407861432,1772837752318,-500.0,0.00051499,120]
[407861433,1772837752482,-151.0,0.00051499,120]
[407861434,1772837752538,-745.65223616,0.00051499,120]
[407861435,1772837752596,-151.0,0.00051499,120]
[407861436,1772837752654,-773.2413689,0.00051499,120]
[407861437,1772837752712,-801.85129955,0.00051499,120]
[407861438,1772837752768,-831.51979763,0.00051499,120]
[407861439,1772837752824,-862.28603014,0.00051499,120]
[407861440,1772837752880,-894.19061326,0.00051499,120]
[407861441,1772837752937,-927.27566595,0.00051499,120]
[407861442,1772837752991,-961.58486559,0.00051499,120]
[407861443,1772837753043,-997.16350561,0.00051499,120]
[407861444,1772837753100,-417803.16387342,0.000515,99]
[407861445,1772837753152,-1000000.0,0.000515,99]
[407861446,1772837753207,-1000000.0,0.000515,99]
[407861447,1772837753263,-1000000.0,0.000515,99]
[407861448,1772837753324,-1000000.0,0.000515,99]
[407861449,1772837753384,-1000000.0,0.000515,86]
[407861450,1772837753445,-1000000.0,0.000515,86]
[407861451,1772837753505,-1000000.0,0.000515,69]
[407861452,1772837753565,-1000000.0,0.000515,68]
[407861453,1772837753621,-55850.80336154,0.000515,120]
[407861454,1772837753679,-508466.2020085,0.000515,105]
[407861455,1772837756936,-509.0,0.00049271,33]
[407861456,1772837756996,-491533.7979915,0.000515,105]
[407861457,1772837757047,-1000000.0,0.000515,120]
[407861458,1772837757098,-24849.85281469,0.000515,30]
[407861459,1772837757162,-298.0,0.000515,120]
[407861460,1772837757218,-194.7148365,0.000515,30]
[407861461,1772837757270,-151.0,0.000515,120]
[407861462,1772837757321,-151.0,0.000515,120]
[407861463,1772837757369,-151.0,0.000515,120]
[407861464,1772837757419,-151.0,0.000515,120]
[407861465,1772837757470,-151.0,0.000515,120]
[407861466,1772837757519,-151.0,0.000515,120]
[407861467,1772837757568,-151.0,0.000515,120]
[407861468,1772837757617,-151.0,0.000515,120]
[407861469,1772837757664,-151.0,0.000515,120]
[407861470,1772837757710,-151.0,0.000515,120]
[407861471,1772837757758,-151.0,0.000515,120]
[407861472,1772837757805,-151.0,0.000515,120]
[407861473,1772837757852,-151.0,0.000515,120]
[407861474,1772837757900,-151.0,0.000515,120]
[407861475,1772837757948,-1323.028952,0.000515,120]
[407861476,1772837758000,-190.386435,0.000515,120]
[407861477,1772837758048,-174.675155,0.000515,120]
[407861478,1772837758098,-154.684975,0.000515,120]
[407861479,1772837758149,-151.0,0.000515,120]
[407861480,1772837758204,-151.0,0.000515,120]
[407861481,1772837758258,-151.0,0.000515,120]
[407861482,1772837758313,-1300.0,0.000515,60]
[407861483,1772837758371,-900.0,0.000515,60]
[407861484,1772837758424,-500.0,0.000515,60]
[407861485,1772837758482,-624.10003821,0.000515,120]
[407861486,1772837758538,-200.0,0.000515,120]
[407861487,1772837758594,-151.0,0.000515,120]
[407861488,1772837758650,-151.0,0.000515,120]
[407861489,1772837758701,-151.0,0.000515,120]
[407861490,1772837758754,-150.0,0.000515,120]
[407861491,1772837758807,-1109.0,0.000515,30]
[407861492,1772837758860,-162.11,0.00051558,120]
[407861493,1772837758911,-216674.0,0.00051582,120]
[407861494,1772837758963,-183.04,0.00051591,120]
[407861495,1772837759015,-150.0,0.00051608,120]
[407861496,1772837759066,-150.0,0.00051642,120]
[407861497,1772837759118,-150.0,0.00051656,120]
[407861498,1772837759173,-162.11,0.00051658,120]
[407861499,1772837759225,-5000.0,0.0005168,120]
[407861500,1772837759278,-209.18247554,0.0005168,120]
[407861501,1772837759339,-3328.66,0.000517,60]
[407861502,1772837759398,-3526.0,0.000517,120]
[407861503,1772837759456,-1211.33,0.00051737,120]
[407861504,1772837759524,-1000000.0,0.0005175,115]
[407861505,1772837759588,-1000000.0,0.0005175,120]
[407861506,1772837759648,-151.0,0.0005175,120]
[407861507,1772837759706,-151.0,0.0005175,120]
[407861508,1772837759763,-151.0,0.0005175,120]
[407861509,1772837759825,-151.0,0.0005175,120]
[407861510,1772837760175,-999.0,0.00051755,120]
[407861511,1772837760238,-1381.44,0.00051755,30]
[407861512,1772837760295,-1381.44,0.00051755,30]
[407861513,1772837760351,-1381.44,0.00051755,30]
[407861514,1772837760408,-999.0,0.00051755,120]
[407861515,1772837760469,-1147.32,0.00051755,120]
[407861516,1772837760535,-999.0,0.00051755,120]
[407861517,1772837760598,-162.11,0.00051758,120]
[407861518,1772837760668,-216674.0,0.00051782,120]
[407861519,1772837760739,-51438.0,0.000518,120]
[407861520,1772837760799,-150.0,0.00051805,120]
[407861521,1772837760861,-162.11,0.00051858,120]
[407861522,1772837760920,-183.05,0.00051865,120]
[407861523,1772837760977,-1644.0,0.00051875,120]
[407861524,1772837761036,-443.99793473,0.00051888,120]
[407861525,1772837761101,-519.79203921,0.000519,60]
[407861526,1772837761160,-860.11690028,0.000519,120]
[407861527,1772837761220,-12000.0,0.00051949,120]
[407861528,1772837761279,-5411.31353871,0.0005195,120]
[407861529,1772837761338,-4000.000999,0.00051954,90]
[407861530,1772837761401,-162.11,0.00051958,120]
[407861531,1772837761461,-216674.0,0.00051982,120]
[407861532,1772837761520,-1000.0,0.00051999,120]
[407861533,1772837761577,-288.33219155,0.00051999,120]
[407861534,1772837761642,-50000.0,0.00052,89]
[407861535,1772837761702,-2852.12822244,0.00052,54]
[407861536,1772837761764,-950000.0,0.00052,120]
[407861537,1772837761820,-186104.55879716,0.00052,60]
[407861538,1772837761875,-644.53338683,0.00052,120]
[407861539,1772837761929,-155.73658489,0.00052,120]
[407861540,1772837761984,-166.47984002,0.00052,120]
[407861541,1772837762038,-359.87631713,0.00052,120]
[407861542,1772837762098,-1107.16497781,0.00052,120]
[407861543,1772837762154,-1072.76422346,0.00052,120]
[407861544,1772837762212,-1755.44137833,0.00052,60]
[407861545,1772837762271,-400.0,0.00052,120]
[407861546,1772837762329,-1000.0,0.00052,120]
[407861547,1772837762386,-150.0,0.00052,120]
[407861548,1772837762442,-305.51438849,0.00052,60]
[407861549,1772837762499,-43300.0,0.00052,120]
[407861550,1772837762554,-2646.86183941,0.00052,30]
[407861551,1772837762611,-400.0,0.00052,120]
[407861552,1772837762673,-1000000.0,0.00052,120]
[407861553,1772837762729,-293826.49652538,0.00052,30]
[407861554,1772837762785,-52390.0,0.00052,33]
[407861555,1772837762841,-597.44930487,0.00052,99]
[407861556,1772837762897,-5448.20718555,0.00052,60]
[407861557,1772837762953,-8238.91853242,0.00052,120]
[407861558,1772837763009,-2745.36582367,0.00052,120]
[407861559,1772837763066,-700000.0,0.00052,120]
[407861560,1772837763127,-1000000.0,0.00052,70]
[407861561,1772837763193,-415729.25539522,0.00052,70]
[407861562,1772837773078,-184.0,0.00045,30]
[407861563,1772837773141,-184.0,0.00046,30]
[407861564,1772837773254,-600.0,0.00049856,60]
[407861565,1772837773317,-1000.0,0.00049856,60]
[407861566,1772837773382,-600.0,0.00050404,60]
[407861567,1772837773444,-1000.0,0.00050404,60]
[407861568,1772837773504,-922.0,0.00050619,120]
[407861569,1772837773566,-600.0,0.00050952,60]
[407861570,1772837773627,-1000.0,0.00050952,60]
[407861571,1772837773695,-600.0,0.000515,60]
[407861572,1772837773755,-1000.0,0.000515,60]
[407861573,1772837773814,-288.33219155,0.00051999,120]
[407861574,1772837773878,-584270.74460478,0.00052,70]
[407861575,1772837773939,-1000000.0,0.00052,49]
[407861576,1772837774001,-1000000.0,0.00052,50]
[407861577,1772837774059,-1000000.0,0.00052,51]
[407861578,1772837774117,-1000000.0,0.00052,52]
[407861579,1772837774178,-1000000.0,0.00052,53]
[407861580,1772837774237,-1000000.0,0.00052,54]
[407861581,1772837774298,-1000000.0,0.00052,55]
[407861582,1772837774357,-1000000.0,0.00052,56]
[407861583,1772837774416,-407750.92320367,0.00052,57]
[407861584,1772837777640,642.69,6.931e-05,2]
[407861585,1772837777832,642.69,7.295e-05,2]
[407861586,1772837778032,642.69,7.66e-05,2]
[407861587,1772837778228,642.69,8.025e-05,2]
[407861588,1772837778440,642.69,8.39e-05,2]
[407861589,1772837778671,642.69,8.754e-05,2]
[407861590,1772837779078,-592249.07679633,0.00052,57]
[407861591,1772837779144,-1000000.0,0.00052,58]
[407861592,1772837779207,-1000000.0,0.00052,59]
[407861593,1772837779271,-1000000.0,0.00052,60]
[407861594,1772837779336,-1000000.0,0.00052,61]
[407861595,1772837779401,-1000000.0,0.00052,62]
[407861596,1772837779467,-1000000.0,0.00052,63]
[407861597,1772837779530,-1000000.0,0.00052,64]
[407861598,1772837779591,-1000000.0,0.00052,65]
[407861599,1772837779656,-407750.92320367,0.00052,98]
[407861600,1772837781623,642.69,9.119e-05,2]
[407861601,1772837781821,642.69,9.484e-05,2]
[407861602,1772837782034,642.69,9.849e-05,2]
[407861603,1772837782233,642.69,0.00010213,2]
[407861604,1772837782624,-244.388,0.00048536,30]
[407861605,1772837782695,-592249.07679633,0.00052,98]
[407861606,1772837782751,-38646.21200932,0.00052,120]
[407861607,1772837782804,-52262.36453253,0.00052,120]
[407861608,1772837782856,-132923.85264712,0.00052,120]
[407861609,1772837782910,-417315.38663177,0.00052,120]
[407861610,1772837782971,-1000000.0,0.00052,105]
[407861611,1772837783030,-1000000.0,0.00052,120]
[407861612,1772837783088,-1000000.0,0.00052,105]
[407861613,1772837783149,-1000000.0,0.00052,110]
[407861614,1772837783206,-152.0,0.00052,120]
[407861615,1772837783265,-154.0,0.00052,120]
[407861616,1772837783332,-298.0,0.00052,120]
[407861617,1772837783398,-151.0,0.00052,120]
[407861618,1772837783457,-151.0,0.00052,120]
[407861619,1772837783518,-286.0,0.00052,120]
[407861620,1772837783581,-247.63360212,0.00052,30]
[407861621,1772837783642,-151.0,0.00052,120]
[407861622,1772837783703,-151.0,0.00052,120]
[407861623,1772837783764,-500.0,0.00052048,60]
[407861624,1772837783822,-600.0,0.00052048,60]
[407861625,1772837783881,-1000.0,0.00052048,60]
[407861626,1772837783940,-1000.0,0.00052054,120]
[407861627,1772837783998,-375.011131,0.00052054,120]
[407861628,1772837784054,-10000.0,0.00052054,120]
[407861629,1772837784112,-30181.68974624,0.00052054,120]
[407861630,1772837784170,-1195.6905082,0.00052054,120]
[407861631,1772837784231,-5000.0,0.00052055,120]
[407861632,1772837784292,-162.11,0.00052058,120]
[407861633,1772837784351,-217.3374815,0.00052062,120]
[407861634,1772837784411,-150.0,0.0005209,120]
[407861635,1772837784471,-260.8,0.00052093,30]
[407861636,1772837784531,-1211.33,0.00052095,120]
[407861637,1772837784592,-14047.51027956,0.000521,120]
[407861638,1772837784652,-150.0,0.00052106,120]
[407861639,1772837784711,-150.0,0.00052139,120]
[407861640,1772837784769,-150.0,0.00052152,120]
[407861641,1772837784826,-150.0,0.00052154,120]
[407861642,1772837784887,-162.11,0.00052158,120]
[407861643,1772837784946,-150.0,0.00052165,120]
[407861644,1772837785004,-152.0,0.000522,30]
[407861645,1772837785070,-1000000.0,0.0005225,110]
[407861646,1772837785135,-1000000.0,0.0005225,110]
[407861647,1772837785201,-162.11,0.00052258,120]
[407861648,1772837785265,-5438.82,0.000523,120]
[407861649,1772837785327,-400.64,0.000523,60]
[407861650,1772837785388,-150.0,0.00052322,120]
[407861651,1772837785450,-162.11,0.00052358,120]
[407861652,1772837785513,-2564.08448827,0.000524,120]
[407861653,1772837785573,-988.72995742,0.000524,120]
[407861654,1772837785743,-150.0,0.00052426,120]
[407861655,1772837785802,-216.90002321,0.00052427,120]
[407861656,1772837785862,-216.60838437,0.00052427,120]
[407861657,1772837785923,-216.90002321,0.00052427,120]
[407861658,1772837785982,-216.75420379,0.00052427,120]
[407861659,1772837786042,-218.61207107,0.00052427,120]
[407861660,1772837786104,-218.61207107,0.00052427,120]
[407861661,1772837786160,-1211.33,0.00052453,120]
[407861662,1772837786220,-162.11,0.00052458,120]
[407861663,1772837786276,-150.0,0.00052499,120]
[407861664,1772837786334,-5000.0,0.000525,120]
[407861665,1772837786391,-5000.0,0.000525,120]
[407861666,1772837786445,-5000.0,0.000525,120]
[407861667,1772837786501,-204.02904643,0.000525,120]
[407861668,1772837786555,-200000.0,0.000525,30]
[407861669,1772837786612,-5000.0,0.000525,120]
[407861670,1772837786670,-66660.94752208,0.000525,120]
[407861671,1772837786728,-5000.0,0.000525,120]
[407861672,1772837786785,-5000.0,0.000525,120]
[407861673,1772837786843,-5000.0,0.000525,120]
[407861674,1772837786900,-5000.0,0.000525,120]
[407861675,1772837786955,-5000.0,0.000525,120]
[407861676,1772837787012,-5000.0,0.000525,120]
[407861677,1772837787070,-5000.0,0.000525,120]
[407861678,1772837787125,-7003.07442516,0.000525,120]
[407861679,1772837787187,-1095000.99,0.000525,100]
[407861680,1772837787248,-260938.13441823,0.000525,110]
[407861681,1772837787377,642.69,0.00010578,2]
[407861682,1772837787410,642.69,0.00010943,2]
[407861683,1772837968842,-97326.03764547,0.00029,60]
[407861684,1772837968909,-400.0,0.000342,100]
[407861685,1772837968970,-275.44,0.000347,30]
[407861686,1772837969029,-400.0,0.000352,100]
[407861687,1772837969089,-432.0,0.00036,120]
[407861688,1772837969149,-190.06,0.00037481,30]
[407861689,1772837969212,-190.06,0.00037493,30]
[407861690,1772837969279,-150.0,0.00042173,120]
[407861691,1772837969345,-400.0,0.00043068,120]
[407861692,1772837969408,-200.0,0.00043068,120]
[407861693,1772837969474,-150.0,0.00044281,120]
[407861694,1772837969540,-247.04096525,0.00046033,30]
[407861695,1772837969607,-247.04096525,0.00046033,30]
[407861696,1772837969868,-150.0,0.00046495,120]
[407861697,1772837969930,-200.0,0.000472,31]
[407861698,1772837969995,-2826.44,0.000478,120]
[407861699,1772837970065,-150.0,0.0004882,120]
[407861700,1772837970130,-183.0,0.00049679,30]
[407861701,1772837970193,-600.0,0.00050856,60]
[407861702,1772837970255,-500.0,0.00050856,60]
[407861703,1772837970323,-2826.44,0.0005138,120]
[407861704,1772837970400,-600.0,0.00051404,60]
[407861705,1772837970466,-500.0,0.00051404,60]
[407861706,1772837970529,-1404.22508594,0.000515,120]
[407861707,1772837970594,-600.0,0.00051952,60]
[407861708,1772837970657,-500.0,0.00051952,60]
[407861709,1772837970718,-150.0,0.00051975,120]
[407861710,1772837970783,-345.79,0.000522,60]
[407861711,1772837970848,-500.0,0.00052499,120]
[407861712,1772837970913,-518.5,0.00052499,120]
[407861713,1772837970980,-557.5788265,0.00052499,120]
[407861714,1772837971045,-578.20924308,0.00052499,120]
[407861715,1772837971110,-599.60298507,0.00052499,120]
[407861716,1772837971177,-621.78829552,0.00052499,120]